{"text_format":"1","workbook":"xlsx","n_sheets":5,"sheets":["Dataset","Formulas from Excel Options","Calculation Feature","Advaneced Excel","VBA"],"not_rendered":{"charts":0,"images":0,"macros":1,"external_links":0,"defined_names":0,"comments":0,"pivot_tables":0},"unopened":[],"bounds":{"document_bytes":16777216,"sheet_cells":100000,"rows_first":2000,"rows_last":500,"rows_between":2000,"halvings":0,"cell_chars":16384,"cell_head_chars":4096},"cells_cut":0,"cells_raw":0,"read":"whole","date_system":"1900"}

{"sheet":"Dataset","index":0,"n_rows":9,"n_cols":5,"rows_kept":9,"cut":false,"hidden":false,"merged":[[1,1,1,4],[1,7,1,10]]}
[]
[null,"Stopping Calculation Threads in Excel"]
[]
[null,"Product","Basic Price","VAT","Total Cost"]
[null,"Laptop",10000,100,{"$f":"SUM(C5,D5)","v":10100}]
[null,"Mobile",12000,150,{"$f":"SUM(C6,D6)","v":12150}]
[null,"Printer",13000,170,13170]
[null,"Monitor",11000,120,11120]
[null,"Mouse",9000,50,9050]

{"sheet":"Formulas from Excel Options","index":1,"n_rows":9,"n_cols":11,"rows_kept":9,"cut":false,"hidden":false,"merged":[[1,1,1,4],[1,7,1,10]]}
[]
[null,"Using Formulas from Excel Options",null,null,null,null,null,">>> Do Yourself <<<"]
[]
[null,"Product","Basic Price","VAT","Total Cost",null,null,"Product","Basic Price","VAT","Total Cost"]
[null,"Laptop",10000,100,{"$f":"SUM(C5,D5)","v":10100},null,null,"Laptop",10000,100,{"$f":"SUM(I5,J5)","v":10100}]
[null,"Mobile",8000,150,{"$f":"SUM(C6,D6)","v":8150},null,null,"Mobile",12000,150,{"$f":"SUM(I6,J6)","v":12150}]
[null,"Printer",13000,170,13170,null,null,"Printer",13000,170,13170]
[null,"Monitor",11000,120,11120,null,null,"Monitor",11000,120,11120]
[null,"Mouse",9000,50,9050,null,null,"Mouse",9000,50,9050]

{"sheet":"Calculation Feature","index":2,"n_rows":9,"n_cols":14,"rows_kept":9,"cut":false,"hidden":false,"merged":[[1,1,1,4],[1,10,1,13]]}
[]
[null,"Use of Calculation Feature",null,null,null,null,null,null,null,null,">>> Do Yourself <<<"]
[]
[null,"Product","Basic Price","VAT","Total Cost",null,null,null,null,null,"Product","Basic Price","VAT","Total Cost"]
[null,"Laptop",10000,90,{"$f":"SUM(C5,D5)","v":10090},null,null,null,null,null,"Laptop",10000,100,{"$f":"SUM(L5,M5)","v":10100}]
[null,"Mobile",8500,100,{"$f":"SUM(C6,D6)","v":8600},null,null,null,null,null,"Mobile",12000,150]
[null,"Printer",13000,170,13170,null,null,null,null,null,"Printer",13000,170]
[null,"Monitor",7000,120,7120,null,null,null,null,null,"Monitor",11000,120]
[null,"Mouse",9000,50,9050,null,null,null,null,null,"Mouse",9000,50]

{"sheet":"Advaneced Excel","index":3,"n_rows":9,"n_cols":12,"rows_kept":9,"cut":false,"hidden":false,"merged":[[1,1,1,4],[1,8,1,11]]}
[]
[null,"Using Advanced Excel Option",null,null,null,null,null,null,">>> Do Yourself <<<"]
[]
[null,"Product","Basic Price","VAT","Total Cost",null,null,null,"Product","Basic Price","VAT","Total Cost"]
[null,"Laptop",10000,100,{"$f":"SUM(C5,D5)","v":10100},null,null,null,"Laptop",10000,100,{"$f":"SUM(J5,K5)","v":10100}]
[null,"Mobile",12000,150,{"$f":"SUM(C6,D6)","v":12150},null,null,null,"Mobile",12000,150]
[null,"Printer",10500,170,10670,null,null,null,"Printer",13000,170]
[null,"Monitor",11000,120,11120,null,null,null,"Monitor",11000,120]
[null,"Mouse",8000,50,8050,null,null,null,"Mouse",9000,50]

{"sheet":"VBA","index":4,"n_rows":9,"n_cols":14,"rows_kept":9,"cut":false,"hidden":false,"merged":[[1,1,1,4],[1,10,1,13]]}
[]
[null,"Inserting VBA",null,null,null,null,null,null,null,null,">>> Do Yourself <<<"]
[]
[null,"Product","Basic Price","VAT","Total Cost",null,null,null,null,null,"Product","Basic Price","VAT","Total Cost"]
[null,"Laptop",10000,100,{"$f":"SUM(C5,D5)","v":10100},null,null,null,null,null,"Laptop",10000,100,{"$f":"SUM(L5,M5)","v":10100}]
[null,"Mobile",7000,70,{"$f":"SUM(C6,D6)","v":7070},null,null,null,null,null,"Mobile",12000,150]
[null,"Printer",13000,120,13120,null,null,null,null,null,"Printer",13000,170]
[null,"Monitor",8500,120,8620,null,null,null,null,null,"Monitor",11000,120]
[null,"Mouse",9000,50,9050,null,null,null,null,null,"Mouse",9000,50]